Workbook

Sheet Assumptions
A1: THE CARE TEAM
C3: Scenario | D3: 7
D5: Model | E5: Inflation link | G5: 1 | H5: 2 | I5: 3 | K5: 5 | L5: 6 | M5: 7
G6: Base | H6: Low inflation | I6: High Inflation | K6: Best | L6: Worst | M6: Random
A8: Income | C8: Donations | D8: =OFFSET(F8,0,$D$3) -> 375000 | E8: 3 | G8: 425000 | H8: 425000 | I8: 425000 | K8: 375000 | L8: 375000 | M8: =(RAND()*(MAX(K8:L8)-MIN(K8:L8)))+MIN(K8:L8) -> 375000
C9: Donation growth | D9: =OFFSET(F9,0,$D$3) -> 0.09654704965 | G9: 0.05 | H9: 0.05 | I9: 0.05 | K9: 0 | L9: 0.1 | M9: =(RAND()*(MAX(K9:L9)-MIN(K9:L9)))+MIN(K9:L9) -> 0.09654704965
C10: Local Authority grant | D10: 186568.4846 | E10: 0 | G10: 180000 | H10: 180000 | I10: 180000 | K10: 180000 | L10: 200000 | M10: 186568.4846
C11: Legacies | D11: 63579.27751 | E11: 0 | G11: 130000 | H11: 130000 | I11: 130000 | K11: 0 | L11: 200000 | M11: 63579.27751
A13: Direct cost | C13: Staff per £ Income | D13: 63172.80341 | E13: 3 | G13: 65000 | H13: 65000 | I13: 65000 | K13: 60000 | L13: 75000 | M13: 63172.80341
C14: Salaries and on cost | D14: 30000 | E14: 4 | G14: 30000 | H14: 30000 | I14: 30000 | K14: 30000 | L14: 30000 | M14: 30000
C15: Travel per person | D15: 750 | E15: 1 | G15: 750 | H15: 750 | I15: 750 | K15: 750 | L15: 750 | M15: 750
A17: Indirect cost | C17: Staff per £ Income | D17: 115000 | E17: 3 | G17: 125000 | H17: 125000 | I17: 125000 | K17: 115000 | L17: 115000 | M17: 115000
C18: Salaries and on cost | D18: 30000 | E18: 4 | G18: 30000 | H18: 30000 | I18: 30000 | K18: 30000 | L18: 30000 | M18: 30000
C19: Energy | D19: 25000 | E19: 2 | G19: 25000 | H19: 25000 | I19: 25000 | K19: 25000 | L19: 25000 | M19: 25000
C20: Stationery | D20: 15000 | E20: 1 | G20: 15000 | H20: 15000 | I20: 15000 | K20: 15000 | L20: 15000 | M20: 15000
C21: Insurance | D21: 12000 | E21: 1 | G21: 12000 | H21: 12000 | I21: 12000 | K21: 12000 | L21: 12000 | M21: 12000
C22: Communication | D22: 26000 | E22: 1 | G22: 26000 | H22: 26000 | I22: 26000 | K22: 26000 | L22: 26000 | M22: 26000
C23: Building Maintenance | D23: 28000 | E23: 1 | G23: 28000 | H23: 28000 | I23: 28000 | K23: 28000 | L23: 28000 | M23: 28000
A25: Inflation | B25: 0 | C25: No change | D25: 0 | G25: 0 | H25: 0 | I25: 0 | K25: 0 | L25: 0 | M25: 0
B26: 1 | C26: RPI | D26: 0.069920594 | G26: 0.1 | H26: 0.06 | I26: 0.13 | K26: 0.06 | L26: 0.12 | M26: 0.069920594
B27: 2 | C27: Energy | D27: 0.1341339065 | G27: 0.2 | H27: 0.1 | I27: 0.25 | K27: 0.1 | L27: 0.25 | M27: 0.1341339065
B28: 3 | C28: Donations | D28: 0.04732412385 | G28: 0.02 | H28: 0 | I28: 0.04 | K28: 0 | L28: 0.05 | M28: 0.04732412385
B29: 4 | C29: Pay rise | D29: 0.04410260027 | G29: 0.08 | H29: 0.04 | I29: 0.1 | K29: 0.04 | L29: 0.12 | M29: 0.04410260027

Sheet Income Statement
A1: =Assumptions!A1 -> THE CARE TEAM
C3: 2022 | D3: =C3+1 -> 2023 | E3: =D3+1 -> 2024 | F3: =E3+1 -> 2025 | G3: 2026 | H3: 2027
A5: Inflation rates | B5: No change | C5: =Assumptions!D25 -> 0 | D5: =1*(1+$C5) -> 1 | E5: =D5*(1+$C5) -> 1 | F5: =E5*(1+$C5) -> 1 | G5: 1 | H5: 1
B6: RPI | C6: =Assumptions!D26 -> 0.069920594 | D6: =1*(1+$C6) -> 1.069920594 | E6: =D6*(1+$C6) -> 1.144730077 | F6: 1.224770284 | G6: 1.31040695 | H6: 1.402031383
B7: Energy | C7: =Assumptions!D27 -> 0.1341339065 | D7: 1.134133906 | E7: =D7*(1+$C7) -> 1.286259718 | F7: 1.458790758 | G7: 1.654464062 | H7: 1.876383789
B8: Donations | C8: =Assumptions!D28 -> 0.04732412385 | D8: 1.047324124 | E8: =D8*(1+$C8) -> 1.09688782 | F8: 1.148797075 | G8: 1.203162891 | H8: 1.26010152
B9: Pay rise | C9: =Assumptions!D29 -> 0.04410260027 | D9: 1.0441026 | E9: =D9*(1+$C9) -> 1.09015024 | F9: 1.1382287 | G9: 1.188427546 | H9: 1.240840291
A12: Income | B12: =_xlfn.CONCAT("Donations - Growing at ",TEXT(Assumptions!D9,"0.0%")," plus ",TEXT(Assumptions!D28,"0.0%")," inflation") -> Donations - Growing at 9.7% plus 4.7% inflation | C12: =Assumptions!D8 -> 375000 | D12: =C12*(1+Assumptions!$D$9)*(1+OFFSET($C$5,Assumptions!$E$8,0)) -> 430665.0668 | E12: =D12*(1+Assumptions!$D$9)*(1+OFFSET($C$5,Assumptions!$E$8,0)) -> 494593.0659 | F12: =E12*(1+Assumptions!$D$9)*(1+OFFSET($C$5,Assumptions!$E$8,0)) -> 568010.5487 | G12: =F12*(1+Assumptions!$D$9)*(1+OFFSET($C$5,Assumptions!$E$8,0)) -> 652326.1357 | H12: =G12*(1+Assumptions!$D$9)*(1+OFFSET($C$5,Assumptions!$E$8,0)) -> 749157.5434
B13: Local Authority grant | C13: 180000 | D13: =C13*(1+OFFSET($C$5,Assumptions!$E$10,0)) -> 180000 | E13: =D13*(1+OFFSET($C$5,Assumptions!$E$10,0)) -> 180000 | F13: =E13*(1+OFFSET($C$5,Assumptions!$E$10,0)) -> 180000 | G13: =F13*(1+OFFSET($C$5,Assumptions!$E$10,0)) -> 180000 | H13: =G13*(1+OFFSET($C$5,Assumptions!$E$10,0)) -> 180000
B14: Legacies | C14: 130000 | D14: =(RAND()*(MAX(Assumptions!$K$11:$L$11)-MIN(Assumptions!$K$11:$L$11)))+MIN(Assumptions!$K$11:$L$11) -> 90640.20123 | E14: =(RAND()*(MAX(Assumptions!$K$11:$L$11)-MIN(Assumptions!$K$11:$L$11)))+MIN(Assumptions!$K$11:$L$11) -> 77142.47746 | F14: =(RAND()*(MAX(Assumptions!$K$11:$L$11)-MIN(Assumptions!$K$11:$L$11)))+MIN(Assumptions!$K$11:$L$11) -> 75638.34373 | G14: =(RAND()*(MAX(Assumptions!$K$11:$L$11)-MIN(Assumptions!$K$11:$L$11)))+MIN(Assumptions!$K$11:$L$11) -> 140351.5981 | H14: =(RAND()*(MAX(Assumptions!$K$11:$L$11)-MIN(Assumptions!$K$11:$L$11)))+MIN(Assumptions!$K$11:$L$11) -> 101774.9629
A15: Total Income | C15: =SUM(C12:C14) -> 685000 | D15: =SUM(D12:D14) -> 701305.268 | E15: 751735.5434 | F15: 823648.8924 | G15: 972677.7337 | H15: 1030932.506
A17: Direct cost | B17: Number of staff | C17: 12 | D17: =ROUND(D15/(Assumptions!$D$13*OFFSET(D$5,Assumptions!$E$13,0)),0) -> 11 | E17: =ROUND(E15/(Assumptions!$D$13*OFFSET(E$5,Assumptions!$E$13,0)),0) -> 11 | F17: =ROUND(F15/(Assumptions!$D$13*OFFSET(F$5,Assumptions!$E$13,0)),0) -> 11 | G17: =ROUND(G15/(Assumptions!$D$13*OFFSET(G$5,Assumptions!$E$13,0)),0) -> 13 | H17: =ROUND(H15/(Assumptions!$D$13*OFFSET(H$5,Assumptions!$E$13,0)),0) -> 13
B18: Salaries and on cost | C18: 30000 | D18: =C18*(1+OFFSET($C$5,Assumptions!$E$14,0)) -> 31323.07801 | E18: =D18*(1+OFFSET($C$5,Assumptions!$E$14,0)) -> 32704.5072 | F18: =E18*(1+OFFSET($C$5,Assumptions!$E$14,0)) -> 34146.861 | G18: =F18*(1+OFFSET($C$5,Assumptions!$E$14,0)) -> 35652.82637 | H18: =G18*(1+OFFSET($C$5,Assumptions!$E$14,0)) -> 37225.20872
B19: Travel per person | C19: 750 | D19: =C19*(1+OFFSET($C$5,Assumptions!$E$15,0)) -> 802.4404455 | E19: =D19*(1+OFFSET($C$5,Assumptions!$E$15,0)) -> 858.5475581 | F19: =E19*(1+OFFSET($C$5,Assumptions!$E$15,0)) -> 918.5777133 | G19: =F19*(1+OFFSET($C$5,Assumptions!$E$15,0)) -> 982.8052127 | H19: =G19*(1+OFFSET($C$5,Assumptions!$E$15,0)) -> 1051.523537
A20: Total | C20: =SUM(C18:C19)*C17 -> 369000 | D20: =SUM(D18:D19)*D17 -> 353380.703 | E20: 369193.6023 | F20: 385719.8259 | G20: 476263.2105 | H20: 497597.5193
A22: Indirect cost | B22: Number of staff | C22: 6 | D22: =ROUND(D15/(Assumptions!$D$17*OFFSET(D$5,Assumptions!$E$17,0)),0) -> 6 | E22: =ROUND(E15/(Assumptions!$D$17*OFFSET(E$5,Assumptions!$E$17,0)),0) -> 6 | F22: =ROUND(F15/(Assumptions!$D$17*OFFSET(F$5,Assumptions!$E$17,0)),0) -> 6 | G22: =ROUND(G15/(Assumptions!$D$17*OFFSET(G$5,Assumptions!$E$17,0)),0) -> 7 | H22: =ROUND(H15/(Assumptions!$D$17*OFFSET(H$5,Assumptions!$E$17,0)),0) -> 7
B23: Salaries and on cost | C23: 30000 | D23: =C23*(1+OFFSET($C$5,Assumptions!$E$18,0)) -> 31323.07801 | E23: =D23*(1+OFFSET($C$5,Assumptions!$E$18,0)) -> 32704.5072 | F23: =E23*(1+OFFSET($C$5,Assumptions!$E$18,0)) -> 34146.861 | G23: =F23*(1+OFFSET($C$5,Assumptions!$E$18,0)) -> 35652.82637 | H23: =G23*(1+OFFSET($C$5,Assumptions!$E$18,0)) -> 37225.20872
B24: Pay cost | C24: =C22*C23 -> 180000 | D24: =D22*D23 -> 187938.468 | E24: 196227.0432 | F24: 204881.166 | G24: 249569.7846 | H24: 260576.461 | J24: Loop run | L24: 100
B25: Energy | C25: =Assumptions!D19 -> 25000 | D25: =C25*(1+OFFSET($C$5,Assumptions!$E$19,0)) -> 28353.34766 | E25: =D25*(1+OFFSET($C$5,Assumptions!$E$19,0)) -> 32156.49295 | F25: =E25*(1+OFFSET($C$5,Assumptions!$E$19,0)) -> 36469.76896 | G25: =F25*(1+OFFSET($C$5,Assumptions!$E$19,0)) -> 41361.60154 | H25: =G25*(1+OFFSET($C$5,Assumptions!$E$19,0)) -> 46909.59473
B26: Stationary | C26: =Assumptions!D20 -> 15000 | D26: =C26*(1+OFFSET($C$5,Assumptions!$E$20,0)) -> 16048.80891 | E26: =D26*(1+OFFSET($C$5,Assumptions!$E$20,0)) -> 17170.95116 | F26: =E26*(1+OFFSET($C$5,Assumptions!$E$20,0)) -> 18371.55427 | G26: =F26*(1+OFFSET($C$5,Assumptions!$E$20,0)) -> 19656.10425 | H26: =G26*(1+OFFSET($C$5,Assumptions!$E$20,0)) -> 21030.47074 | J26: Activate
B27: Insurance | C27: =Assumptions!D21 -> 12000 | D27: =C27*(1+OFFSET($C$5,Assumptions!$E$21,0)) -> 12839.04713 | E27: =D27*(1+OFFSET($C$5,Assumptions!$E$21,0)) -> 13736.76093 | F27: =E27*(1+OFFSET($C$5,Assumptions!$E$21,0)) -> 14697.24341 | G27: =F27*(1+OFFSET($C$5,Assumptions!$E$21,0)) -> 15724.8834 | H27: =G27*(1+OFFSET($C$5,Assumptions!$E$21,0)) -> 16824.37659
B28: Communication | C28: =Assumptions!D22 -> 26000 | D28: =C28*(1+OFFSET($C$5,Assumptions!$E$22,0)) -> 27817.93544 | E28: =D28*(1+OFFSET($C$5,Assumptions!$E$22,0)) -> 29762.98201 | F28: =E28*(1+OFFSET($C$5,Assumptions!$E$22,0)) -> 31844.0274 | G28: =F28*(1+OFFSET($C$5,Assumptions!$E$22,0)) -> 34070.58071 | H28: =G28*(1+OFFSET($C$5,Assumptions!$E$22,0)) -> 36452.81595 | J28: Av time before a Loss | N28: 2.720000267 | P28: =_xlfn.CONCAT(INT(ROUND(N28*12,0)/12)+2022," years ", ROUND(N28*12,0)-(INT(ROUND(N28*12,0)/12)*12)," months") -> 2024 years 9 months
B29: Building Maintenance | C29: =Assumptions!D23 -> 28000 | D29: =C29*(1+OFFSET($C$5,Assumptions!$E$23,0)) -> 29957.77663 | E29: =D29*(1+OFFSET($C$5,Assumptions!$E$23,0)) -> 32052.44217 | F29: =E29*(1+OFFSET($C$5,Assumptions!$E$23,0)) -> 34293.56796 | G29: =F29*(1+OFFSET($C$5,Assumptions!$E$23,0)) -> 36691.39461 | H29: =G29*(1+OFFSET($C$5,Assumptions!$E$23,0)) -> 39256.87871 | J29: Number of times negative in 2027 | N29: 88 | P29: =_xlfn.CONCAT(TEXT(N29/L24,"0.0%")," of values") -> 88.0% of values
A30: Total | C30: =SUM(C24:C29) -> 286000 | D30: =SUM(D24:D29) -> 302955.3838 | E30: =SUM(E24:E29) -> 321106.6724 | F30: 340557.328 | G30: 397074.3491 | H30: 421050.5977
A32: Total cost | C32: =C30+C20 -> 655000 | D32: =D30+D20 -> 656336.0868 | E32: =E30+E20 -> 690300.2747 | F32: 726277.1539 | G32: 873337.5596 | H32: 918648.117
A33: Result | C33: =C15-C32 -> 30000 | D33: =D15-D32 -> 44969.18118 | E33: =E15-E32 -> 61435.2687 | F33: 97371.73851 | G33: 99340.17414 | H33: 112284.3892
